Workbook

Sheet ORÇAMENTO
A1: <---- NUMERAR SERVIÇOS PARA CPU | C1: Ministério do Desenvolvimento Regional
C2: Companhia de Desenvolvimento dos Vales do São Francisco e do Parnaíba
C3: 1ª Superintendência Regional
B5: OBRA: | C5: PAVIMENTAÇÃO EM BLOQUETE SEXTAVADOS - RUAS DIVERAS - ARAÇUAÍ/MG
B6: DATA: | C6: SETEMBRO/2023 | G6: BDI Serviços: | I6: ='BDI SERV'!D30/100 -> 0.2047
B7: PRAZO DE EXECUÇÃO: 300 DIAS
B8: ITEM | C8: DISCRIMINAÇÃO | D8: REFER. | E8: UNID. | F8: QUANT. | G8: P. UNITÁRIO | H8: P.UNIT.C/ BDI | I8: P. TOTAL
A9: A | B9: 1 | C9: SERVIÇOS PRELIMINARES | I9: =SUM(I10:I14) -> 135440.23
A10: 1 | B10: 1.1 | C10: MOBILIZAÇÃO E DESMOBILIZAÇÃO | D10: CPU.1 | E10: GL | F10: 1 | G10: =VLOOKUP(A10,CPU!$A$1:$N$4508,9) -> 6071.4 | H10: =VLOOKUP(A10,CPU!$A$1:$N$4508,10) -> 7314.21558 | I10: =ROUND(F10*H10,2) -> 7314.22
A11: 2 | B11: 1.2 | C11: ADMINISTRAÇÃO LOCAL | D11: CPU.2 | E11: GL | F11: 1 | G11: =VLOOKUP(A11,CPU!$A$1:$N$4508,9) -> 92700.2 | H11: =VLOOKUP(A11,CPU!$A$1:$N$4508,10) -> 111675.9309 | I11: =ROUND(F11*H11,2) -> 111675.93
A12: 3 | B12: 1.3 | C12: CANTEIRO DE OBRAS | D12: CPU.3 | E12: GL | F12: 1 | G12: =VLOOKUP(A12,CPU!$A$1:$N$4508,9) -> 9750 | H12: =VLOOKUP(A12,CPU!$A$1:$N$4508,10) -> 11745.825 | I12: =ROUND(F12*H12,2) -> 11745.83
A13: 4 | B13: 1.4 | C13: PLACA DE OBRA EM CHAPA DE AÇO GALVANIZADO | D13: 103689 | E13: M2 | F13: 4.5 | G13: =VLOOKUP(A13,CPU!$A$1:$N$4508,9) -> 307.76 | H13: =VLOOKUP(A13,CPU!$A$1:$N$4508,10) -> 370.758472 | I13: =ROUND(F13*H13,2) -> 1668.41
A14: 5 | B14: 1.5 | C14: LOCAÇÃO DE PAVIMENTAÇÃO | D14: 99064 | E14: M | F14: 3600 | G14: =VLOOKUP(A14,CPU!$A$1:$N$4508,9) -> 0.7 | H14: =VLOOKUP(A14,CPU!$A$1:$N$4508,10) -> 0.84329 | I14: =ROUND(F14*H14,2) -> 3035.84
A15: B | B15: 2 | C15: PAVIMENTAÇÃO | I15: =SUM(I16:I19) -> 2060415.27
A16: 6 | B16: 2.1 | C16: ESCAVAÇÃO HORIZONTAL EM SOLO DE 1A CATEGORIA COM TRATOR DE ESTEIRAS | D16: 101116 | E16: M3 | F16: 4000 | G16: =VLOOKUP(A16,CPU!$A$1:$N$4508,9) -> 2.2 | H16: =VLOOKUP(A16,CPU!$A$1:$N$4508,10) -> 2.65034 | I16: =ROUND(F16*H16,2) -> 10601.36
A17: 7 | B17: 2.2 | C17: CARGA, MANOBRA E DESCARGA DE SOLOS E MATERIAIS GRANULARES EM CAMINHÃO BASCULANTE - CARGA COM PÁ CARREGADEIRA E DESCARGA LIVRE | D17: 100976 | E17: M3 | F17: 4000 | G17: =VLOOKUP(A17,CPU!$A$1:$N$4508,9) -> 8.71 | H17: =VLOOKUP(A17,CPU!$A$1:$N$4508,10) -> 10.492937 | I17: =ROUND(F17*H17,2) -> 41971.75
A18: 8 | B18: 2.3 | C18: REGULARIZAÇÃO E COMPACTAÇÃO DE SUBLEITO | D18: 100576 | E18: M2 | F18: 26000 | G18: =VLOOKUP(A18,CPU!$A$1:$N$4508,9) -> 2.57 | H18: =VLOOKUP(A18,CPU!$A$1:$N$4508,10) -> 3.096079 | I18: =ROUND(F18*H18,2) -> 80498.05
A19: 9 | B19: 2.6 | C19: EXECUÇÃO DE PAVIMENTO EM PISO INTERTRAVADO, COM BLOCO SEXTAVADO DE 25 X 25 CM, ESPESSURA 8 CM | D19: 92394a | E19: M2 | F19: 22600 | G19: =VLOOKUP(A19,CPU!$A$1:$N$4508,9) -> 70.79 | H19: =VLOOKUP(A19,CPU!$A$1:$N$4508,10) -> 85.280713 | I19: =ROUND(F19*H19,2) -> 1927344.11
A20: C | B20: 3 | C20: TRANSPORTE DE MATERIAIS | I20: =SUM(I21:I23) -> 63752.73
A21: 9.5 | B21: 3.1 | C21: TRANSPORTE COM CAMINHÃO BASCULANTE, EM VIA URBANA EM REVESTIMENTO PRIMÁRIO | D21: 95426 | E21: M3XKM | F21: 12000 | G21: =VLOOKUP(A21,CPU!$A$1:$N$4508,9) -> 1.41 | H21: =VLOOKUP(A21,CPU!$A$1:$N$4508,10) -> 1.698627 | I21: =ROUND(F21*H21,2) -> 20383.52
A22: 10 | B22: 3.2 | C22: TRANSPORTE COM CAMINHÃO BASCULANTE, EM VIA URBANA PAVIMENTADA | D22: 95427 | E22: M3XKM | F22: 24000.002 | G22: =VLOOKUP(A22,CPU!$A$1:$N$4508,9) -> 0.73 | H22: =VLOOKUP(A22,CPU!$A$1:$N$4508,10) -> 0.879431 | I22: =ROUND(F22*H22,2) -> 21106.35
A23: 11 | B23: 3.3 | C23: TRANSPORTE COM CAMINHÃO CARROCERIA, EM VIA URBANA PAVIMENTADA | D23: 100948 | E23: TXKM | F23: 22000.00412 | G23: =VLOOKUP(A23,CPU!$A$1:$N$4508,9) -> 0.84 | H23: =VLOOKUP(A23,CPU!$A$1:$N$4508,10) -> 1.011948 | I23: =ROUND(F23*H23,2) -> 22262.86
A24: D | B24: 4 | C24: DRENAGEM E OBRAS COMPLEMENTARES | I24: =SUM(I25:I28) -> 737959.13
A25: 12 | B25: 4.1 | C25: ASSENTAMENTO DE GUIA (MEIO-FIO) EM TRECHO RETO, CONFECCIONADA EM CONCRETO PRÉ-FABRICADO, DIMENSÕES 100X15X13X30 CM (COMPRIMENTO X BASE INFERIOR X BASE SUPERIOR X ALTURA) | D25: 94273a | E25: M | F25: 7400 | G25: =VLOOKUP(A25,CPU!$A$1:$N$4508,9) -> 45.31 | H25: =VLOOKUP(A25,CPU!$A$1:$N$4508,10) -> 54.584957 | I25: =ROUND(F25*H25,2) -> 403928.68
A26: 13 | B26: 4.2 | C26: EXECUÇÃO DE SARJETA DE CONCRETO USINADO, MOLDADA IN LOCO EM TRECHO RETO, 30 CM BASE X 5 CM ALTURA | D26: 94273a | E26: M | F26: 7150 | G26: =VLOOKUP(A26,CPU!$A$1:$N$4508,9) -> 34.31 | H26: =VLOOKUP(A26,CPU!$A$1:$N$4508,10) -> 41.333257 | I26: =ROUND(F26*H26,2) -> 295532.79
A27: 14 | B27: 4.3 | C27: FORNECIMENTO E INSTALAÇÃO DE PLACA DE SINALIZAÇÃO VIÁRIA - REGULAMENTAÇÃO (PARE) | D27: CPU.4 | E27: UNID. | F27: 46 | G27: =VLOOKUP(A27,CPU!$A$1:$N$4508,9) -> 482.58 | H27: =VLOOKUP(A27,CPU!$A$1:$N$4508,10) -> 581.364126 | I27: =ROUND(F27*H27,2) -> 26742.75
A28: 15 | B28: 4.4 | C28: FORNECIMENTO E INSTALAÇÃO DE PLACA DE AÇO PARA IDENTIFICACAO DE RUA, *45 CM X 20* CM, INCLUSIVE SUPORTE EM TUBO DE AÇO GALVANIZADO (02 PLACAS POR SUPORTE) | D28: CPU.5 | E28: UNID. | F28: 26 | G28: =VLOOKUP(A28,CPU!$A$1:$N$4508,9) -> 375.29 | H28: =VLOOKUP(A28,CPU!$A$1:$N$4508,10) -> 452.111863 | I28: =ROUND(F28*H28,2) -> 11754.91
B29: TOTAL GERAL DA OBRA COM BDI | I29: =SUM(I9,I15,I20,I24) -> 2997567.36

Sheet CPU
A1: 1 | B1: CODEVASF | E1: COMPOSIÇÃO DE PREÇO UNITÁRIO | I1: =H11 -> 6071.4 | J1: =H13 -> 7314.21558 | K1: BDI CALCULADO: | M1: =ORÇAMENTO!I6 -> 0.2047
B2: OBRA: | C2: =ORÇAMENTO!C5 -> PAVIMENTAÇÃO EM BLOQUETE SEXTAVADOS - RUAS DIVERAS - ARAÇUAÍ/MG | G2: DATA: | H2: =ORÇAMENTO!C6 -> SETEMBRO/2023
B3: SERVIÇO: | C3: =VLOOKUP(A1,ORÇAMENTO!A10:I26,3) -> MOBILIZAÇÃO E DESMOBILIZAÇÃO | E3: Referência: | F3: =VLOOKUP(A1,ORÇAMENTO!A10:I26,4) -> CPU.1 | G3: UNIDADE: | H3: =VLOOKUP(A1,ORÇAMENTO!A10:I26,5) -> GL
B5: TIPO ITEM | C5: CODIGO ITEM | D5: DESCRIÇÃO ITEM | E5: UNIDADE ITEM | F5: COEFICIENTE | G5: PRECO UNITARIO | H5: CUSTO TOTAL
B6: COMPOSICAO | C6: 5824 | D6: CAMINHÃO TOCO, PBT 16.000 KG, CARGA ÚTIL MÁX. 10.685 KG, DIST. ENTRE EIXOS 4,8 M, POTÊNCIA 189 CV, INCLUSIVE CARROCERIA FIXA ABERTA DE MADEIRA P/ TRANSPORTE GERAL DE CARGA SECA | E6: CHP | F6: 12 | G6: 202,74 | H6: =ROUNDDOWN(F6*G6,2) -> 2432.88
B7: COMPOSICAO | C7: 5826 | D7: CAMINHÃO TOCO, PBT 16.000 KG, CARGA ÚTIL MÁX. 10.685 KG, DIST. ENTRE EIXOS 4,8 M, POTÊNCIA 189 CV, INCLUSIVE CARROCERIA FIXA ABERTA DE MADEIRA P/ TRANSPORTE GERAL DE CARGA SECA | E7: CHI | F7: 6 | G7: 60,95 | H7: =ROUNDDOWN(F7*G7,2) -> 365.7
B8: COMPOSIÇÃO | C8: 88316 | D8: SERVENTE COM ENCARGOS COMPLEMENTARES | E8: H | F8: 12 | G8: 19,76 | H8: =ROUNDDOWN(F8*G8,2) -> 237.12
H9: =ROUNDDOWN(F9*G9,2) -> 0
B10: PRODUÇÃO DA EQUIPE | E10: 0.5 | F10: CUSTO | H10: =SUM(H6:H9) -> 3035.7
B11: TOTAL | H11: =H10/E10 -> 6071.4 | I11: OK
B12: BDI % | H12: =1+$M$1 -> 1.2047
B13: TOTAL DO SERVIÇO - R$ | H13: =H11*H12 -> 7314.21558
A15: =A1+1 -> 2 | B15: CODEVASF | E15: COMPOSIÇÃO DE PREÇO UNITÁRIO | I15: =H29 -> 92700.2 | J15: =H31 -> 111675.9309
B16: OBRA: | C16: =$C$2 -> PAVIMENTAÇÃO EM BLOQUETE SEXTAVADOS - RUAS DIVERAS - ARAÇUAÍ/MG | G16: DATA: | H16: =$H$2 -> SETEMBRO/2023
B17: SERVIÇO: | C17: =VLOOKUP(A15,ORÇAMENTO!$A$10:$I$26,3) -> ADMINISTRAÇÃO LOCAL | E17: SINAPI | F17: CPU | G17: UNIDADE: | H17: =VLOOKUP(A15,ORÇAMENTO!$A$10:$I$26,5) -> GL
B19: TIPO ITEM | C19: CODIGO ITEM | D19: DESCRIÇÃO ITEM | E19: UNIDADE ITEM | F19: COEFICIENTE | G19: PRECO UNITARIO | H19: CUSTO TOTAL
B20: INSUMO | C20: 14250 | D20: ENERGIA ELÉTRICA | E20: kwh | F20: 60 | G20: 0,94 | H20: =ROUNDDOWN(F20*G20,2) -> 56.4
B21: INSUMO | C21: 44480 | D21: TARIFA "A" ENTRE 0 E 20 M³ - FORNECIMENTO D'ÁGUA | E21: m³ | F21: 4 | G21: 17,78 | H21: =ROUNDDOWN(F21*G21,2) -> 71.12
B22: COTAÇÃO | C22: MERC. | D22: TELEFONE (PLANO CONTROLE) | E22: UNID | F22: 3 | G22: 60 | H22: 180
B23: COMPOSICAO | C23: 90777 | D23: ENGENHEIRO CIVIL DE OBRA COM ENCARGOS COMPLEMENTARES | E23: H | F23: 30 | G23: 114,12 | H23: 3423.6
B24: COMPOSICAO | C24: 90776 | D24: ENCARREGADO GERAL COM ENCARGOS COMPLEMENTARES | E24: H | F24: 60 | G24: 57,73 | H24: =ROUNDDOWN(F24*G24,2) -> 3463.8
B25: COMPOSICAO | C25: 88321 | D25: TÉCNICO DE LABORATÓRIO COM ENCARGOS COMPLEMENTARES | E25: H | F25: 30 | G25: 45,45 | H25: =ROUNDDOWN(F25*G25,2) -> 1363.5
B26: COMPOSICAO | C26: 90772 | D26: Auxiliar de escritório com encargos complementares | E26: H | F26: 30 | G26: 23.72 | H26: =ROUNDDOWN(F26*G26,2) -> 711.6
H27: 0
B28: PRODUÇÃO DA EQUIPE | E28: =1/10 -> 0.1 | F28: CUSTO | H28: =SUM(H20:H27) -> 9270.02
B29: TOTAL | H29: =H28/E28 -> 92700.2 | I29: OK
B30: BDI % | H30: =1+$M$1 -> 1.2047
B31: TOTAL DO SERVIÇO - R$ | H31: =H29*H30 -> 111675.9309
A33: =A15+1 -> 3 | B33: CODEVASF | E33: COMPOSIÇÃO DE PREÇO UNITÁRIO | I33: =H40 -> 9750 | J33: =H42 -> 11745.825
B34: OBRA: | C34: =$C$2 -> PAVIMENTAÇÃO EM BLOQUETE SEXTAVADOS - RUAS DIVERAS - ARAÇUAÍ/MG | G34: DATA: | H34: =$H$2 -> SETEMBRO/2023
B35: SERVIÇO: | C35: =VLOOKUP(A33,ORÇAMENTO!$A$10:$I$26,3) -> CANTEIRO DE OBRAS | E35: SINAPI | F35: =VLOOKUP(A33,ORÇAMENTO!$A$10:$I$26,4) -> CPU.3 | G35: UNIDADE: | H35: =VLOOKUP(A33,ORÇAMENTO!$A$10:$I$26,5) -> GL
B37: TIPO ITEM | C37: CODIGO ITEM | D37: DESCRIÇÃO ITEM | E37: UNIDADE ITEM | F37: COEFICIENTE | G37: PRECO UNITARIO | H37: CUSTO TOTAL
B38: COTAÇÃO | C38: 10775 | D38: ALUGUEL DE IMÓVEL OU CONTEINER QUE ATENDA AOS REQUISITOS MÍNIMOS PARA INSTALAÇÃO DO CANTEIRO DE OBRAS | E38: MÊS | F38: 10 | G38: 975 | H38: =ROUNDDOWN(F38*G38,2) -> 9750
B39: PRODUÇÃO DA EQUIPE | E39: 1 | F39: CUSTO | H39: =SUM(H38:H38) -> 9750
B40: TOTAL | H40: =H39/E39 -> 9750 | I40: OK
B41: BDI % | H41: =1+$M$1 -> 1.2047
B42: TOTAL DO SERVIÇO - R$ | H42: =H40*H41 -> 11745.825
A44: =A33+1 -> 4 | B44: CODEVASF | E44: COMPOSIÇÃO DE PREÇO UNITÁRIO | I44: =H58 -> 307.76 | J44: =H60 -> 370.758472
B45: OBRA: | C45: =$C$2 -> PAVIMENTAÇÃO EM BLOQUETE SEXTAVADOS - RUAS DIVERAS - ARAÇUAÍ/MG | G45: DATA: | H45: =$H$2 -> SETEMBRO/2023
B46: SERVIÇO: | C46: =VLOOKUP(A44,ORÇAMENTO!$A$10:$I$26,3) -> PLACA DE OBRA EM CHAPA DE AÇO GALVANIZADO | E46: SINAPI | F46: =VLOOKUP(A44,ORÇAMENTO!$A$10:$I$26,4) -> 103689 | G46: UNIDADE: | H46: =VLOOKUP(A44,ORÇAMENTO!$A$10:$I$26,5) -> M2
B48: TIPO ITEM | C48: CODIGO ITEM | D48: DESCRIÇÃO ITEM | E48: UNIDADE ITEM | F48: COEFICIENTE | G48: PRECO UNITARIO | H48: CUSTO TOTAL
B49: INSUMO | C49: 4509 | D49: SARRAFO *2,5 X 10* CM EM PINUS, MISTA OU EQUIVALENTE DA REGIAO - BRUTA | E49: M | F49: 3,2083000 | G49: 4.41 | H49: =ROUNDDOWN(F49*G49,2) -> 14.14
B50: INSUMO | C50: 4813 | D50: PLACA DE OBRA (PARA CONSTRUCAO CIVIL) EM CHAPA GALVANIZADA *N. 22*, ADESIVADA, DE *2,4 X 1,2* M (SEM POSTES PARA FIXACAO) | E50: M2 | F50: 1,0000000 | G50: 250,00 | H50: =ROUNDDOWN(F50*G50,2) -> 250
B51: INSUMO | C51: 5065 | D51: PREGO DE ACO POLIDO COM CABECA 10 X 10 (7/8 X 17) | E51: KG | F51: 0,0113000 | G51: 36.57 | H51: 0.41
B52: INSUMO | C52: 5069 | D52: PREGO DE ACO POLIDO COM CABECA 17 X 27 (2 1/2 X 11) | E52: KG | F52: 0,0132000 | G52: 19.59 | H52: 0.25
B53: COMPOSICAO | C53: 88262 | D53: CARPINTEIRO DE FORMAS COM ENCARGOS COMPLEMENTARES | E53: H | F53: 0,3729000 | G53: 27,05 | H53: 10.08
B54: COMPOSICAO | C54: 88316 | D54: SERVENTE COM ENCARGOS COMPLEMENTARES | E54: H | F54: 1,1186000 | G54: 19,76 | H54: 22.1
B55: COMPOSICAO | C55: 102234 | D55: PINTURA IMUNIZANTE PARA MADEIRA, 2 DEMÃOS | E55: M2 | F55: 0,5000000 | G55: 21.57 | H55: =ROUNDDOWN(F55*G55,2) -> 10.78
H56: 0
B57: PRODUÇÃO DA EQUIPE | E57: 1 | F57: CUSTO | H57: =SUM(H49:H56) -> 307.76
B58: TOTAL | H58: =H57/E57 -> 307.76 | I58: OK
B59: BDI % | H59: =1+$M$1 -> 1.2047
B60: TOTAL DO SERVIÇO - R$ | H60: =H58*H59 -> 370.758472
A62: =A44+1 -> 5 | B62: CODEVASF | E62: COMPOSIÇÃO DE PREÇO UNITÁRIO | I62: =H69 -> 0.7 | J62: =H71 -> 0.84329
B63: OBRA: | C63: =$C$2 -> PAVIMENTAÇÃO EM BLOQUETE SEXTAVADOS - RUAS DIVERAS - ARAÇUAÍ/MG | G63: DATA: | H63: =$H$2 -> SETEMBRO/2023
B64: SERVIÇO: | C64: =VLOOKUP(A62,ORÇAMENTO!$A$10:$I$26,3) -> LOCAÇÃO DE PAVIMENTAÇÃO | E64: SINAPI | F64: =VLOOKUP(A62,ORÇAMENTO!$A$10:$I$26,4) -> 99064 | G64: UNIDADE: | H64: =VLOOKUP(A62,ORÇAMENTO!$A$10:$I$26,5) -> M
B66: TIPO ITEM | C66: CODIGO ITEM | D66: DESCRIÇÃO ITEM | E66: UNIDADE ITEM | F66: COEFICIENTE | G66: PRECO UNITARIO | H66: CUSTO TOTAL
B67: COMPOSICAO | C67: 99058 | D67: LOCAÇÃO DE PONTO PARA REFERÊNCIA TOPOGRÁFICA | E67: UN | F67: 0,0500000 | G67: 14.14 | H67: =ROUNDDOWN(F67*G67,2) -> 0.7
B68: PRODUÇÃO DA EQUIPE | E68: 1 | F68: CUSTO | H68: =SUM(H67:H67) -> 0.7
B69: TOTAL | H69: =H68/E68 -> 0.7 | I69: OK
B70: BDI % | H70: =1+$M$1 -> 1.2047
B71: TOTAL DO SERVIÇO - R$ | H71: =H69*H70 -> 0.84329
A73: =A62+1 -> 6 | B73: CODEVASF | E73: COMPOSIÇÃO DE PREÇO UNITÁRIO | I73: =H82 -> 2.2 | J73: =H84 -> 2.65034
B74: OBRA: | C74: =$C$2 -> PAVIMENTAÇÃO EM BLOQUETE SEXTAVADOS - RUAS DIVERAS - ARAÇUAÍ/MG | G74: DATA: | H74: =$H$2 -> SETEMBRO/2023
B75: SERVIÇO: | C75: =VLOOKUP(A73,ORÇAMENTO!$A$10:$I$26,3) -> ESCAVAÇÃO HORIZONTAL EM SOLO DE 1A CATEGORIA COM TRATOR DE ESTEIRAS | E75: SINAPI | F75: =VLOOKUP(A73,ORÇAMENTO!$A$10:$I$26,4) -> 101116 | G75: UNIDADE: | H75: =VLOOKUP(A73,ORÇAMENTO!$A$10:$I$26,5) -> M3
B77: TIPO ITEM | C77: CODIGO ITEM | D77: DESCRIÇÃO ITEM | E77: UNIDADE ITEM | F77: COEFICIENTE | G77: PRECO UNITARIO | H77: CUSTO TOTAL
B78: COMPOSICAO | C78: 5847 | D78: TRATOR DE ESTEIRAS, POTÊNCIA 170 HP, PESO OPERACIONAL 19 T, CAÇAMBA 5,2 M3 - CHP DIURNO. AF_06/2014 | E78: CHP | F78: 0,0048000 | G78: 253,93 | H78: =ROUNDDOWN(F78*G78,2) -> 1.21
B79: COMPOSICAO | C79: 5849 | D79: TRATOR DE ESTEIRAS, POTÊNCIA 170 HP, PESO OPERACIONAL 19 T, CAÇAMBA 5,2 M3 - CHI DIURNO. AF_06/2014 | E79: CHI | F79: 0,0082000 | G79: 90,40 | H79: =ROUNDDOWN(F79*G79,2) -> 0.74
B80: COMPOSICAO | C80: 88316 | D80: SERVENTE COM ENCARGOS COMPLEMENTARES | E80: H | F80: 0,0131000 | G80: 19,76 | H80: =ROUNDDOWN(F80*G80,2) -> 0.25
B81: PRODUÇÃO DA EQUIPE | E81: 1 | F81: CUSTO | H81: =SUM(H78:H80) -> 2.2
B82: TOTAL | H82: =H81/E81 -> 2.2 | I82: OK
B83: BDI % | H83: =1+$M$1 -> 1.2047
B84: TOTAL DO SERVIÇO - R$ | H84: =H82*H83 -> 2.65034
A86: 7 | B86: CODEVASF | E86: COMPOSIÇÃO DE PREÇO UNITÁRIO | I86: =H96 -> 8.71 | J86: =H98 -> 10.492937
B87: OBRA: | C87: =$C$2 -> PAVIMENTAÇÃO EM BLOQUETE SEXTAVADOS - RUAS DIVERAS - ARAÇUAÍ/MG | G87: DATA: | H87: =$H$2 -> SETEMBRO/2023
B88: SERVIÇO: | C88: =VLOOKUP(A86,ORÇAMENTO!$A$10:$I$26,3) -> CARGA, MANOBRA E DESCARGA DE SOLOS E MATERIAIS GRANULARES EM CAMINHÃO BASCULANTE - CARGA COM PÁ CARREGADEIRA E DESCARGA LIVRE | E88: SINAPI | F88: =VLOOKUP(A86,ORÇAMENTO!$A$10:$I$26,4) -> 100976 | G88: UNIDADE: | H88: =VLOOKUP(A86,ORÇAMENTO!$A$10:$I$26,5) -> M3
B90: TIPO ITEM | C90: CODIGO ITEM | D90: DESCRIÇÃO ITEM | E90: UNIDADE ITEM | F90: COEFICIENTE | G90: PRECO UNITARIO | H90: CUSTO TOTAL
B91: COMPOSICAO | C91: 5940 | D91: PÁ CARREGADEIRA SOBRE RODAS, POTÊNCIA LÍQUIDA 128 HP, CAPACIDADE DA CAÇAMBA 1,7 A 2,8 M3, PESO OPERACIONAL 11632 KG - CHP DIURNO. AF_06/2014 | E91: CHP | F91: 0,0083000 | G91: 217,72 | H91: =ROUNDDOWN(F91*G91,2) -> 1.8
B92: COMPOSICAO | C92: 5942 | D92: PÁ CARREGADEIRA SOBRE RODAS, POTÊNCIA LÍQUIDA 128 HP, CAPACIDADE DA CAÇAMBA 1,7 A 2,8 M3, PESO OPERACIONAL 11632 KG - CHI DIURNO. AF_06/2014 | E92: CHI | F92: 0,0074000 | G92: 95,85 | H92: =ROUNDDOWN(F92*G92,2) -> 0.7
B93: COMPOSICAO | C93: 89883 | D93: CAMINHÃO BASCULANTE 18 M3, COM CAVALO MECÂNICO DE CAPACIDADE MÁXIMA DE TRAÇÃO COMBINADO DE 45000 KG, POTÊNCIA 330 CV, INCLUSIVE SEMIREBOQUE COM CAÇAMBA METÁLICA - CHP DIURNO. AF_12/2014 | E93: CHP | F93: 0,0153000 | G93: 348,45 | H93: =ROUNDDOWN(F93*G93,2) -> 5.33
B94: COMPOSICAO | C94: 89884 | D94: CAMINHÃO BASCULANTE 18 M3, COM CAVALO MECÂNICO DE CAPACIDADE MÁXIMA DE TRAÇÃO COMBINADO DE 45000 KG, POTÊNCIA 330 CV, INCLUSIVE SEMIREBOQUE COM CAÇAMBA METÁLICA - CHI DIURNO. AF_12/2014 | E94: CHI | F94: 0,0095000 | G94: 93,65 | H94: =ROUNDDOWN(F94*G94,2) -> 0.88
B95: PRODUÇÃO DA EQUIPE | E95: 1 | F95: CUSTO | H95: =SUM(H91:H94) -> 8.71
B96: TOTAL | H96: =H95/E95 -> 8.71 | I96: OK
B97: BDI % | H97: =1+$M$1 -> 1.2047
B98: TOTAL DO SERVIÇO - R$ | H98: =H96*H97 -> 10.492937
A100: 8 | B100: CODEVASF | E100: COMPOSIÇÃO DE PREÇO UNITÁRIO | I100: =H113 -> 2.57 | J100: =H115 -> 3.096079
B101: OBRA: | C101: =$C$2 -> PAVIMENTAÇÃO EM BLOQUETE SEXTAVADOS - RUAS DIVERAS - ARAÇUAÍ/MG | G101: DATA: | H101: =$H$2 -> SETEMBRO/2023
B102: SERVIÇO: | C102: =VLOOKUP(A100,ORÇAMENTO!$A$10:$I$26,3) -> REGULARIZAÇÃO E COMPACTAÇÃO DE SUBLEITO | E102: SINAPI | F102: =VLOOKUP(A100,ORÇAMENTO!$A$10:$I$26,4) -> 100576 | G102: UNIDADE: | H102: =VLOOKUP(A100,ORÇAMENTO!$A$10:$I$26,5) -> M2
B104: TIPO ITEM | C104: CODIGO ITEM | D104: DESCRIÇÃO ITEM | E104: UNIDADE ITEM | F104: COEFICIENTE | G104: PRECO UNITARIO | H104: CUSTO TOTAL
B105: COMPOSICAO | C105: 5901 | D105: CAMINHÃO PIPA 10.000 L TRUCADO, PESO BRUTO TOTAL 23.000 KG, CARGA ÚTIL MÁXIMA 15.935 KG, DISTÂNCIA ENTRE EIXOS 4,8 M, POTÊNCIA 230 CV, INCLUSIVE TANQUE DE AÇO PARA TRANSPORTE DE ÁGUA | E105: CHP | F105: 0,0010000 | G105: 294,94 | H105: =ROUNDDOWN(F105*G105,2) -> 0.29
B106: COMPOSICAO | C106: 5903 | D106: CAMINHÃO PIPA 10.000 L TRUCADO, PESO BRUTO TOTAL 23.000 KG, CARGA ÚTIL MÁXIMA 15.935 KG, DISTÂNCIA ENTRE EIXOS 4,8 M, POTÊNCIA 230 CV, INCLUSIVE TANQUE DE AÇO PARA TRANSPORTE DE ÁGUA | E106: CHI | F106: 0,0070000 | G106: 72,55 | H106: 0.5
B107: COMPOSICAO | C107: 5932 | D107: MOTONIVELADORA POTÊNCIA BÁSICA LÍQUIDA (PRIMEIRA MARCHA) 125 HP, PESO BRUTO 13032 KG, LARGURA DA LÂMINA DE 3,7 M | E107: CHP | F107: 0,0001000 | G107: 262,71 | H107: 0.02
B108: COMPOSICAO | C108: 5934 | D108: MOTONIVELADORA POTÊNCIA BÁSICA LÍQUIDA (PRIMEIRA MARCHA) 125 HP, PESO BRUTO 13032 KG, LARGURA DA LÂMINA DE 3,7 M | E108: CHI | F108: 0,0080000 | G108: 109,40 | H108: 0.87
B109: COMPOSICAO | C109: 73436 | D109: ROLO COMPACTADOR VIBRATÓRIO PÉ DE CARNEIRO PARA SOLOS, POTÊNCIA 80 HP, PESO OPERACIONAL SEM/COM LASTRO 7,4 / 8,8 T, LARGURA DE TRABALHO 1,68 M | E109: CHP | F109: 0,0020000 | G109: 163,19 | H109: 0.32
B110: COMPOSICAO | C110: 88316 | D110: SERVENTE COM ENCARGOS COMPLEMENTARES | E110: H | F110: 0,0080000 | G110: 19,76 | H110: 0.15
B111: COMPOSICAO | C111: 93244 | D111: ROLO COMPACTADOR VIBRATÓRIO PÉ DE CARNEIRO PARA SOLOS, POTÊNCIA 80 HP, PESO OPERACIONAL SEM/COM LASTRO 7,4 / 8,8 T, LARGURA DE TRABALHO 1,68 M | E111: CHI | F111: 0,0060000 | G111: 71,18 | H111: 0.42
B112: PRODUÇÃO DA EQUIPE | E112: 1 | F112: CUSTO | H112: =SUM(H105:H111) -> 2.57
B113: TOTAL | H113: =H112/E112 -> 2.57 | I113: OK
B114: BDI % | H114: =1+$M$1 -> 1.2047
B115: TOTAL DO SERVIÇO - R$ | H115: =H113*H114 -> 3.096079
A117: 9 | B117: CODEVASF | E117: COMPOSIÇÃO DE PREÇO UNITÁRIO | I117: =H132 -> 70.79 | J117: =H134 -> 85.280713
B118: OBRA: | C118: =$C$2 -> PAVIMENTAÇÃO EM BLOQUETE SEXTAVADOS - RUAS DIVERAS - ARAÇUAÍ/MG | G118: DATA: | H118: =$H$2 -> SETEMBRO/2023
B119: SERVIÇO: | C119: =VLOOKUP(A117,ORÇAMENTO!$A$10:$I$26,3) -> EXECUÇÃO DE PAVIMENTO EM PISO INTERTRAVADO, COM BLOCO SEXTAVADO DE 25 X 25 CM, ESPESSURA 8 CM | E119: SINAPI | F119: =VLOOKUP(A117,ORÇAMENTO!$A$10:$I$26,4) -> 92394a | G119: UNIDADE: | H119: =VLOOKUP(A117,ORÇAMENTO!$A$10:$I$26,5) -> M2
B121: TIPO ITEM | C121: CODIGO ITEM | D121: DESCRIÇÃO ITEM | E121: UNIDADE ITEM | F121: COEFICIENTE | G121: PRECO UNITARIO | H121: CUSTO TOTAL
B122: INSUMO | C122: COTAÇÃO | D122: AREIA MEDIA - POSTO JAZIDA/FORNECEDOR (RETIRADO NA JAZIDA, SEM TRANSPORTE) | E122: M3 | F122: 0,0568000 | G122: 45 | H122: =ROUNDDOWN(F122*G122,2) -> 2.55
B123: INSUMO | C123: 712 | D123: BLOQUETE/PISO INTERTRAVADO DE CONCRETO - MODELO SEXTAVADO / HEXAGONAL, 25 CM X 25 CM, E = 8 CM, RESISTENCIA DE 35 MPA (NBR 9781), COR NATURAL | E123: M2 | F123: 1,0038000 | G123: 60.25 | H123: 60.47
B124: INSUMO | C124: 4741 | D124: PO DE PEDRA (POSTO PEDREIRA/FORNECEDOR, SEM FRETE) | E124: M3 | F124: 0,0066000 | G124: 111,12 | H124: 0.73
B125: COMPOSICAO | C125: 88260 | D125: CALCETEIRO COM ENCARGOS COMPLEMENTARES | E125: H | F125: 0,1683000 | G125: 21,06 | H125: 3.54
B126: COMPOSICAO | C126: 88316 | D126: SERVENTE COM ENCARGOS COMPLEMENTARES | E126: H | F126: 0,1683000 | G126: 19,76 | H126: 3.32
B127: COMPOSICAO | C127: 91277 | D127: PLACA VIBRATÓRIA REVERSÍVEL COM MOTOR 4 TEMPOS A GASOLINA, FORÇA CENTRÍFUGA DE 25 KN (2500 KGF), POTÊNCIA 5,5 CV | E127: CHP | F127: 0,0055000 | G127: 8,77 | H127: 0.04
B128: COMPOSICAO | C128: 91278 | D128: PLACA VIBRATÓRIA REVERSÍVEL COM MOTOR 4 TEMPOS A GASOLINA, FORÇA CENTRÍFUGA DE 25 KN (2500 KGF), POTÊNCIA 5,5 CV | E128: CHI | F128: 0,0787000 | G128: 0,52 | H128: 0.04
B129: COMPOSICAO | C129: 91283 | D129: CORTADORA DE PISO COM MOTOR 4 TEMPOS A GASOLINA, POTÊNCIA DE 13 HP, COM DISCO DE CORTE DIAMANTADO SEGMENTADO PARA CONCRETO, DIÂMETRO DE 350 MM, FURO DE 1" (14 X 1") | E129: CHP | F129: 0,0038000 | G129: 9,69 | H129: 0.03
B130: COMPOSICAO | C130: 91285 | D130: CORTADORA DE PISO COM MOTOR 4 TEMPOS A GASOLINA, POTÊNCIA DE 13 HP, COM DISCO DE CORTE DIAMANTADO SEGMENTADO PARA CONCRETO, DIÂMETRO DE 350 MM, FURO DE 1" (14 X 1") | E130: CHI | F130: 0,0804000 | G130: 0,92 | H130: 0.07
B131: PRODUÇÃO DA EQUIPE | E131: 1 | F131: CUSTO | H131: =SUM(H122:H130) -> 70.79
B132: TOTAL | H132: =H131/E131 -> 70.79 | I132: OK
B133: BDI % | H133: =1+$M$1 -> 1.2047
B134: TOTAL DO SERVIÇO - R$ | H134: =H132*H133 -> 85.280713
A136: 9.5 | B136: CODEVASF | E136: COMPOSIÇÃO DE PREÇO UNITÁRIO | I136: =H145 -> 1.41 | J136: =H147 -> 1.698627
B137: OBRA: | C137: =$C$2 -> PAVIMENTAÇÃO EM BLOQUETE SEXTAVADOS - RUAS DIVERAS - ARAÇUAÍ/MG | G137: DATA: | H137: =$H$2 -> SETEMBRO/2023
B138: SERVIÇO: | C138: =VLOOKUP(A136,ORÇAMENTO!$A$10:$I$26,3) -> TRANSPORTE COM CAMINHÃO BASCULANTE, EM VIA URBANA EM REVESTIMENTO PRIMÁRIO | E138: SINAPI | F138: =VLOOKUP(A136,ORÇAMENTO!$A$10:$I$26,4) -> 95426 | G138: UNIDADE: | H138: =VLOOKUP(A136,ORÇAMENTO!$A$10:$I$26,5) -> M3XKM
B140: TIPO ITEM | C140: CODIGO ITEM | D140: DESCRIÇÃO ITEM | E140: UNIDADE ITEM | F140: COEFICIENTE | G140: PRECO UNITARIO | H140: CUSTO TOTAL
B141: COMPOSICAO | C141: 89883a | D141: CAMINHÃO BASCULANTE 18 M3, COM CAVALO MECÂNICO DE CAPACIDADE MÁXIMA DE TRAÇÃO COMBINADO DE 45000 KG, POTÊNCIA 330 CV, INCLUSIVE SEMIREBOQUE COM CAÇAMBA METÁLICA | E141: CHP | F141: 0.0035 | G141: 348,45 | H141: =ROUNDDOWN(F141*G141,2) -> 1.21
B142: COMPOSICAO | C142: 89884 | D142: CAMINHÃO BASCULANTE 18 M3, COM CAVALO MECÂNICO DE CAPACIDADE MÁXIMA DE TRAÇÃO COMBINADO DE 45000 KG, POTÊNCIA 330 CV, INCLUSIVE SEMIREBOQUE COM CAÇAMBA METÁLICA | E142: CHI | F142: 0,0022000 | G142: 93,65 | H142: 0.2
H143: =F143*G143 -> 0
B144: PRODUÇÃO DA EQUIPE | E144: 1 | F144: CUSTO | H144: =SUM(H141:H143) -> 1.41
B145: TOTAL | H145: =H144/E144 -> 1.41
B146: BDI % | H146: =1+$M$1 -> 1.2047
B147: TOTAL DO SERVIÇO - R$ | H147: =H145*H146 -> 1.698627
A149: 10 | B149: CODEVASF | E149: COMPOSIÇÃO DE PREÇO UNITÁRIO | I149: =H158 -> 0.73 | J149: =H160 -> 0.879431
B150: OBRA: | C150: =$C$2 -> PAVIMENTAÇÃO EM BLOQUETE SEXTAVADOS - RUAS DIVERAS - ARAÇUAÍ/MG | G150: DATA: | H150: =$H$2 -> SETEMBRO/2023
B151: SERVIÇO: | C151: =VLOOKUP(A149,ORÇAMENTO!$A$10:$I$26,3) -> TRANSPORTE COM CAMINHÃO BASCULANTE, EM VIA URBANA PAVIMENTADA | E151: SINAPI | F151: =VLOOKUP(A149,ORÇAMENTO!$A$10:$I$26,4) -> 95427 | G151: UNIDADE: | H151: =VLOOKUP(A149,ORÇAMENTO!$A$10:$I$26,5) -> M3XKM
B153: TIPO ITEM | C153: CODIGO ITEM | D153: DESCRIÇÃO ITEM | E153: UNIDADE ITEM | F153: COEFICIENTE | G153: PRECO UNITARIO | H153: CUSTO TOTAL
B154: COMPOSICAO | C154: 89883 | D154: CAMINHÃO BASCULANTE 18 M3, COM CAVALO MECÂNICO DE CAPACIDADE MÁXIMA DE TRAÇÃO COMBINADO DE 45000 KG, POTÊNCIA 330 CV, INCLUSIVE SEMIREBOQUE COM CAÇAMBA METÁLICA | E154: CHP | F154: 0,0019000 | G154: 348,45 | H154: =ROUNDDOWN(F154*G154,2) -> 0.66
B155: COMPOSICAO | C155: 89884 | D155: CAMINHÃO BASCULANTE 18 M3, COM CAVALO MECÂNICO DE CAPACIDADE MÁXIMA DE TRAÇÃO COMBINADO DE 45000 KG, POTÊNCIA 330 CV, INCLUSIVE SEMIREBOQUE COM CAÇAMBA METÁLICA | E155: CHI | F155: 0,0008000 | G155: 93,65 | H155: =ROUNDDOWN(F155*G155,2) -> 0.07
H156: =F156*G156 -> 0
B157: PRODUÇÃO DA EQUIPE | E157: 1 | F157: CUSTO | H157: =SUM(H154:H156) -> 0.73
B158: TOTAL | H158: =H157/E157 -> 0.73 | I158: OK
B159: BDI % | H159: =1+$M$1 -> 1.2047
B160: TOTAL DO SERVIÇO - R$ | H160: =H158*H159 -> 0.879431
A162: 11 | B162: CODEVASF | E162: COMPOSIÇÃO DE PREÇO UNITÁRIO | I162: =H171 -> 0.84 | J162: =H173 -> 1.011948
B163: OBRA: | C163: =$C$2 -> PAVIMENTAÇÃO EM BLOQUETE SEXTAVADOS - RUAS DIVERAS - ARAÇUAÍ/MG | G163: DATA: | H163: =$H$2 -> SETEMBRO/2023
B164: SERVIÇO: | C164: TRANSPORTE COM CAMINHÃO CARROCERIA 9T, EM VIA URBANA PAVIMENTADA | E164: SINAPI | F164: =VLOOKUP(A162,ORÇAMENTO!$A$10:$I$26,4) -> 100948 | G164: UNIDADE: | H164: =VLOOKUP(A162,ORÇAMENTO!$A$10:$I$26,5) -> TXKM
B166: TIPO ITEM | C166: CODIGO ITEM | D166: DESCRIÇÃO ITEM | E166: UNIDADE ITEM | F166: COEFICIENTE | G166: PRECO UNITARIO | H166: CUSTO TOTAL
B167: COMPOSICAO | C167: 5824 | D167: CAMINHÃO TOCO, PBT 16.000 KG, CARGA ÚTIL MÁX. 10.685 KG, DIST. ENTRE EIXOS 4,8 M, POTÊNCIA 189 CV, INCLUSIVE CARROCERIA FIXA ABERTA DE MADEIRA P/ TRANSPORTE GERAL DE CARGA SECA | E167: CHP | F167: 0,0037000 | G167: 202,74 | H167: =ROUNDDOWN(F167*G167,2) -> 0.75
B168: COMPOSICAO | C168: 5826 | D168: CAMINHÃO TOCO, PBT 16.000 KG, CARGA ÚTIL MÁX. 10.685 KG, DIST. ENTRE EIXOS 4,8 M, POTÊNCIA 189 CV, INCLUSIVE CARROCERIA FIXA ABERTA DE MADEIRA P/ TRANSPORTE GERAL DE CARGA SECA | E168: CHI | F168: 0,0016000 | G168: 60,95 | H168: =ROUNDDOWN(F168*G168,2) -> 0.09
H169: =F169*G169 -> 0
B170: PRODUÇÃO DA EQUIPE | E170: 1 | F170: CUSTO | H170: =SUM(H167:H169) -> 0.84
B171: TOTAL | H171: =H170/E170 -> 0.84 | I171: OK
B172: BDI % | H172: =1+$M$1 -> 1.2047
B173: TOTAL DO SERVIÇO - R$ | H173: =H171*H172 -> 1.011948
A175: 12 | B175: CODEVASF | E175: COMPOSIÇÃO DE PREÇO UNITÁRIO | I175: =H187 -> 45.31 | J175: =H189 -> 54.584957
B176: OBRA: | C176: =$C$2 -> PAVIMENTAÇÃO EM BLOQUETE SEXTAVADOS - RUAS DIVERAS - ARAÇUAÍ/MG | G176: DATA: | H176: =$H$2 -> SETEMBRO/2023
B177: SERVIÇO: | C177: =VLOOKUP(A175,ORÇAMENTO!$A$10:$I$26,3) -> ASSENTAMENTO DE GUIA (MEIO-FIO) EM TRECHO RETO, CONFECCIONADA EM CONCRETO PRÉ-FABRICADO, DIMENSÕES 100X15X13X30 CM (COMPRIMENTO X BASE INFERIOR X BASE SUPERIOR X ALTURA) | E177: SINAPI | F177: =VLOOKUP(A175,ORÇAMENTO!$A$10:$I$26,4) -> 94273a | G177: UNIDADE: | H177: =VLOOKUP(A175,ORÇAMENTO!$A$10:$I$26,5) -> M
B179: TIPO ITEM | C179: CODIGO ITEM | D179: DESCRIÇÃO ITEM | E179: UNIDADE ITEM | F179: COEFICIENTE | G179: PRECO UNITARIO | H179: CUSTO TOTAL
B180: INSUMO | C180: COTAÇÃO | D180: AREIA MEDIA - POSTO JAZIDA/FORNECEDOR (RETIRADO NA JAZIDA, SEM TRANSPORTE) | E180: M3 | F180: 0,0070000 | G180: 45 | H180: =ROUNDDOWN(F180*G180,2) -> 0.31
B181: INSUMO | C181: COTAÇÃO | D181: MEIO-FIO OU GUIA DE CONCRETO, PRE-MOLDADO, COMP 1 M, *30 X 12/15* CM (H X L1/L2) | E181: M | F181: 1,0050000 | G181: =20/0.8 -> 25 | H181: 25.12
B182: COMPOSICAO | C182: 88309 | D182: PEDREIRO COM ENCARGOS COMPLEMENTARES | E182: H | F182: 0,3940000 | G182: 27,45 | H182: 10.81
B183: COMPOSICAO | C183: 88316 | D183: SERVENTE COM ENCARGOS COMPLEMENTARES | E183: H | F183: 0,3940000 | G183: 19,76 | H183: 7.78
B184: COMPOSICAO | C184: 88629 | D184: ARGAMASSA TRAÇO 1:3 (EM VOLUME DE CIMENTO E AREIA MÉDIA ÚMIDA), PREPARO MANUAL. AF_08/2019 | E184: M3 | F184: 0,0020000 | G184: 645,53 | H184: 1.29
B186: PRODUÇÃO DA EQUIPE | E186: 1 | F186: CUSTO | H186: =SUM(H180:H185) -> 45.31
B187: TOTAL | H187: =H186/E186 -> 45.31 | I187: OK
B188: BDI % | H188: =1+$M$1 -> 1.2047
B189: TOTAL DO SERVIÇO - R$ | H189: =H187*H188 -> 54.584957
A191: 13 | B191: CODEVASF | E191: COMPOSIÇÃO DE PREÇO UNITÁRIO | I191: =H204 -> 34.31 | J191: =H206 -> 41.333257
B192: OBRA: | C192: =$C$2 -> PAVIMENTAÇÃO EM BLOQUETE SEXTAVADOS - RUAS DIVERAS - ARAÇUAÍ/MG | G192: DATA: | H192: =$H$2 -> SETEMBRO/2023
B193: SERVIÇO: | C193: =VLOOKUP(A191,ORÇAMENTO!$A$10:$I$26,3) -> EXECUÇÃO DE SARJETA DE CONCRETO USINADO, MOLDADA IN LOCO EM TRECHO RETO, 30 CM BASE X 5 CM ALTURA | E193: SINAPI | F193: =VLOOKUP(A191,ORÇAMENTO!$A$10:$I$26,4) -> 94273a | G193: UNIDADE: | H193: =VLOOKUP(A191,ORÇAMENTO!$A$10:$I$26,5) -> M
B195: TIPO ITEM | C195: CODIGO ITEM | D195: DESCRIÇÃO ITEM | E195: UNIDADE ITEM | F195: COEFICIENTE | G195: PRECO UNITARIO | H195: CUSTO TOTAL
B196: INSUMO | C196: COTAÇÃO | D196: AREIA MEDIA - POSTO JAZIDA/FORNECEDOR (RETIRADO NA JAZIDA, SEM TRANSPORTE) | E196: M3 | F196: 0,0100000 | G196: 45 | H196: =ROUNDDOWN(F196*G196,2) -> 0.45
B197: INSUMO | C197: 4517 | D197: SARRAFO *2,5 X 7,5* CM EM PINUS, MISTA OU EQUIVALENTE DA REGIAO - BRUTA | E197: M | F197: 0,2000000 | G197: 3,04 | H197: 0.6
B198: INSUMO | C198: 6189 | D198: TABUA NAO APARELHADA *2,5 X 30* CM, EM MACARANDUBA/MASSARANDUBA, ANGELIM OU EQUIVALENTE DA REGIAO - BRUTA | E198: M | F198: 0,0830000 | G198: 43,21 | H198: 3.58
B199: INSUMO | C199: 34492a | D199: CONCRETO USINADO BOMBEAVEL, CLASSE DE RESISTENCIA C20, COM BRITA 0 E 1, SLUMP = 100 +/- 20 MM, EXCLUI SERVICO DE BOMBEAMENTO (NBR 8953) | E199: M3 | F199: =(0.3*0.05) -> 0.015 | G199: 550,00 | H199: 8.25
B200: COMPOSICAO | C200: 88309 | D200: PEDREIRO COM ENCARGOS COMPLEMENTARES | E200: H | F200: 0,4540000 | G200: 27,45 | H200: 12.46
B201: COMPOSICAO | C201: 88316 | D201: SERVENTE COM ENCARGOS COMPLEMENTARES | E201: H | F201: 0,4540000 | G201: 19,76 | H201: 8.97
B203: PRODUÇÃO DA EQUIPE | E203: 1 | F203: CUSTO | H203: =SUM(H196:H201) -> 34.31
B204: TOTAL | H204: =H203/E203 -> 34.31
B205: BDI % | H205: =1+$M$1 -> 1.2047
B206: TOTAL DO SERVIÇO - R$ | H206: =H204*H205 -> 41.333257
A208: 14 | B208: CODEVASF | E208: COMPOSIÇÃO DE PREÇO UNITÁRIO | I208: =H222 -> 482.58 | J208: =H224 -> 581.364126
B209: OBRA: | C209: =$C$2 -> PAVIMENTAÇÃO EM BLOQUETE SEXTAVADOS - RUAS DIVERAS - ARAÇUAÍ/MG | G209: DATA: | H209: =$H$2 -> SETEMBRO/2023
B210: SERVIÇO: | C210: =VLOOKUP(A208,ORÇAMENTO!$A$10:$I$29,3) -> FORNECIMENTO E INSTALAÇÃO DE PLACA DE SINALIZAÇÃO VIÁRIA - REGULAMENTAÇÃO (PARE) | E210: SINAPI | F210: =VLOOKUP(A208,ORÇAMENTO!$A$10:$I$29,4) -> CPU.4 | G210: UNIDADE: | H210: =VLOOKUP(A208,ORÇAMENTO!$A$10:$I$29,5) -> UNID.
B212: TIPO ITEM | C212: CODIGO ITEM | D212: DESCRIÇÃO ITEM | E212: UNIDADE ITEM | F212: COEFICIENTE | G212: PRECO UNITARIO | H212: CUSTO TOTAL
B213: COMPOSICAO | C213: 94962 | D213: CONCRETO MAGRO PARA LASTRO, TRAÇO 1:4,5:4,5 (EM MASSA SECA DE CIMENTO/ AREIA/ BRITA 1) | E213: M3 | F213: 0.024 | G213: 397.46 | H213: =ROUNDDOWN(F213*G213,2) -> 9.53
B214: COMPOSICAO | C214: 93358 | D214: ESCAVAÇÃO MANUAL DE VALA COM PROFUNDIDADE MENOR OU IGUAL A 1,30 M | E214: M3 | F214: 0.024 | G214: 78.17 | H214: 1.87
B215: COMPOSICAO | C215: 88309 | D215: PEDREIRO COM ENCARGOS COMPLEMENTARES | E215: H | F215: 0.2 | G215: 27.45 | H215: 5.49
B216: COMPOSICAO | C216: 88316 | D216: SERVENTE COM ENCARGOS COMPLEMENTARES | E216: H | F216: 1 | G216: 19.76 | H216: 19.76
B217: COMPOSICAO | C217: 103670 | D217: LANÇAMENTO COM USO DE BALDES, ADENSAMENTO E ACABAMENTO DE CONCRETO EM ESTRUTURAS | E217: M3 | F217: 0.024 | G217: 281.66 | H217: 6.75
B218: INSUMO | C218: 34723 | D218: PLACA DE SINALIZACAO EM CHAPA DE ACO NUM 16 COM PINTURA REFLETIVA | E218: M2 | F218: =4*0.3*0.25 -> 0.3 | G218: 577.5 | H218: 173.25
B219: INSUMO | C219: 21013 | D219: TUBO AÇO GALVANIZADO COM COSTURA, CLASSE LEVE, DN 50 MM ( 2")E = 3,00 MM, *4,40* KG/M | E219: M | F219: 3.5 | G219: 75.98 | H219: 265.93
B221: PRODUÇÃO DA EQUIPE | E221: 1 | F221: CUSTO | H221: =SUM(H213:H220) -> 482.58
B222: TOTAL | H222: =H221/E221 -> 482.58 | I222: OK
B223: BDI % | H223: =1+$M$1 -> 1.2047
B224: TOTAL DO SERVIÇO - R$ | H224: =H222*H223 -> 581.364126
A226: 15 | B226: CODEVASF | E226: COMPOSIÇÃO DE PREÇO UNITÁRIO | I226: =H241 -> 375.29 | J226: =H243 -> 452.111863
B227: OBRA: | C227: =$C$2 -> PAVIMENTAÇÃO EM BLOQUETE SEXTAVADOS - RUAS DIVERAS - ARAÇUAÍ/MG | G227: DATA: | H227: =$H$2 -> SETEMBRO/2023
B228: SERVIÇO: | C228: =VLOOKUP(A226,ORÇAMENTO!$A$10:$I$29,3) -> FORNECIMENTO E INSTALAÇÃO DE PLACA DE AÇO PARA IDENTIFICACAO DE RUA, *45 CM X 20* CM, INCLUSIVE SUPORTE EM TUBO DE AÇO GALVANIZADO (02 PLACAS POR SUPORTE) | E228: SINAPI | F228: =VLOOKUP(A226,ORÇAMENTO!$A$10:$I$29,4) -> CPU.5 | G228: UNIDADE: | H228: =VLOOKUP(A226,ORÇAMENTO!$A$10:$I$29,5) -> UNID.
B230: TIPO ITEM | C230: CODIGO ITEM | D230: DESCRIÇÃO ITEM | E230: UNIDADE ITEM | F230: COEFICIENTE | G230: PRECO UNITARIO | H230: CUSTO TOTAL
B231: COMPOSICAO | C231: 94962 | D231: CONCRETO MAGRO PARA LASTRO, TRAÇO 1:4,5:4,5 (EM MASSA SECA DE CIMENTO/ AREIA/ BRITA 1) | E231: M3 | F231: 0.024 | G231: 397.46 | H231: =ROUNDDOWN(F231*G231,2) -> 9.53
B232: COMPOSICAO | C232: 93358 | D232: ESCAVAÇÃO MANUAL DE VALA COM PROFUNDIDADE MENOR OU IGUAL A 1,30 M | E232: M3 | F232: 0.024 | G232: 78.17 | H232: 1.87
B233: COMPOSICAO | C233: 88309 | D233: PEDREIRO COM ENCARGOS COMPLEMENTARES | E233: H | F233: 0.2 | G233: 27.45 | H233: 5.49
B234: COMPOSICAO | C234: 88316 | D234: SERVENTE COM ENCARGOS COMPLEMENTARES | E234: H | F234: 1 | G234: 19.76 | H234: 19.76
... 8 more rows

Sheet BDI SERV
B1: DETALHAMENTO DO BDI - SERVIÇOS
B4: Item | C4: Descrição dos Serviços | D4: % | E4: %
D5: PV | E5: CD
B7: 1 | C7: ADMINISTRAÇÃO CENTRAL | E7: 4.01
B8: 1.1 | C8: ESCRITÓRIO CENTRAL
B9: 1.2 | C9: VIAGENS
B10: 1.3 | C10: OUTROS
B12: 2 | C12: IMPOSTOS E TAXAS | D12: =SUM(D13:D15) -> 4.85 | E12: =SUM(E13:E15) -> 6.06
B13: 2.1 | C13: ISS (*) | D13: =3*0.4 -> 1.2 | E13: =ROUND(D13*1.2515,2) -> 1.5
B14: 2.2 | C14: PIS | D14: 0.65 | E14: =ROUND(D14*1.2515,2) -> 0.81
B15: 2.3 | C15: Cofins | D15: 3 | E15: =ROUND(D15*1.2515,2) -> 3.75
B17: 3 | C17: TAXA DE RISCO | E17: =SUM(E18:E21) -> 0.96
B18: 3.1 | C18: SEGURO | E18: 0.2
B19: 3.2 | C19: RISCO | E19: 0.56
B20: 3.3 | C20: GARANTIA | E20: 0.2
B22: 4 | C22: DESPESAS FINANCEIRAS | E22: 1.11
B24: 5 | C24: LUCRO | E24: 8
C26: BDI - CALCULADO | E26: =ROUND((((1+(E7+E17)/100)*(1+E22/100)*(1+E24/100)/(1-D12/100)-1)*100),2) -> 20.47
A28: BDI = ((1+((AC+S+R+G)/100))x(1+DF/100)x(1+L/100)/(1-I/100)-1)*100
B30: BDI (CALCULADO): | D30: =ROUND((((1+((E7+E17)/100))*(1+E22/100)*(1+E24/100))/(1-D12/100)-1)*100,2) -> 20.47 | E30: %
A32: (*) ISS CONFORME LEI COMPLEMENTAR N. º 006/2000 - QUANT. ESTIMADA DE MATERIAIS = 60%
A36: BDI EM CONFORMIDADE COM OS ACÓRDÃOS Nº 2369/2011 e ACÓRDÃO Nº 2.622/2013 - TCU - PLENÁRIO

Sheet CRONOGRAMA
B1: CRONOGRAMA FÍSICO-FINANCEIRO
B2: OBRA: | C2: =ORÇAMENTO!C5 -> PAVIMENTAÇÃO EM BLOQUETE SEXTAVADOS - RUAS DIVERAS - ARAÇUAÍ/MG | F2: VALOR: | G2: =ORÇAMENTO!I29 -> 2997567.36
F3: PRAZO: | G3: 300 DIAS
B5: ITEM | C5: ETAPAS/DESCRIÇAO | D5: FISICO/ FINANCEIRO | E5: TOTAL ETAPAS | F5: MÊS 1 | G5: MÊS 2 | H5: MÊS 3 | I5: MÊS 4 | J5: MÊS 5 | K5: MÊS 6 | L5: MÊS 7 | M5: MÊS 8 | N5: MÊS 9 | O5: MÊS 10 | P5: TOTAL
A6: A | B6: =VLOOKUP(A6,ORÇAMENTO!$A$9:$I$29,2) -> 1 | C6: =VLOOKUP(A6,ORÇAMENTO!$A$9:$I$29,3) -> SERVIÇOS PRELIMINARES | D6: FISICO | E6: =ROUND(E7/$G$2,4) -> 0.0452 | F6: 0.05 | G6: 0.075 | H6: 0.1 | I6: 0.15 | J6: 0.15 | K6: 0.15 | L6: 0.125 | M6: 0.1 | N6: 0.075 | O6: 0.025 | P6: =SUM(F6:O6) -> 1
D7: FINANCEIRO | E7: =ORÇAMENTO!I9 -> 135440.23 | F7: =ROUND($E$7*F6,2) -> 6772.01 | G7: 10158.02 | H7: 13544.02 | I7: 20316.03 | J7: 20316.03 | K7: 20316.03 | L7: 16930.03 | M7: 13544.02 | N7: 10158.02 | O7: 3386.01 | P7: 135440.22
A8: B | B8: =VLOOKUP(A8,ORÇAMENTO!$A$9:$I$29,2) -> 2 | C8: =VLOOKUP(A8,ORÇAMENTO!$A$9:$I$29,3) -> PAVIMENTAÇÃO | D8: FISICO | E8: =ROUND(E9/$G$2,4) -> 0.6874 | F8: 0.05 | G8: 0.075 | H8: 0.1 | I8: 0.15 | J8: 0.15 | K8: 0.15 | L8: 0.125 | M8: 0.1 | N8: 0.075 | O8: 0.025 | P8: 1
D9: FINANCEIRO | E9: =ORÇAMENTO!I15 -> 2060415.27 | F9: =ROUND($E$9*F8,2) -> 103020.76 | G9: =ROUND($E$9*G8,2) -> 154531.15 | H9: =ROUND($E$9*H8,2) -> 206041.53 | I9: 309062.29 | J9: 309062.29 | K9: 309062.29 | L9: 257551.91 | M9: 206041.53 | N9: =ROUND($E$9*N8,2) -> 154531.15 | O9: 51510.38 | P9: 2060415.28
A10: C | B10: =VLOOKUP(A10,ORÇAMENTO!$A$9:$I$29,2) -> 3 | C10: =VLOOKUP(A10,ORÇAMENTO!$A$9:$I$29,3) -> TRANSPORTE DE MATERIAIS | D10: FISICO | E10: =ROUND(E11/$G$2,4) -> 0.0213 | F10: 0.05 | G10: 0.075 | H10: 0.1 | I10: 0.15 | J10: 0.15 | K10: 0.15 | L10: 0.125 | M10: 0.1 | N10: 0.075 | O10: 0.025 | P10: 1
D11: FINANCEIRO | E11: =ORÇAMENTO!I20 -> 63752.73 | F11: =ROUND($E$11*F10,2) -> 3187.64 | G11: =ROUND($E$11*G10,2) -> 4781.45 | H11: =ROUND($E$11*H10,2) -> 6375.27 | I11: 9562.91 | J11: 9562.91 | K11: 9562.91 | L11: 7969.09 | M11: =ROUND($E$11*M10,2) -> 6375.27 | N11: =ROUND($E$11*N10,2) -> 4781.45 | O11: 1593.82 | P11: 63752.72
A12: D | B12: =VLOOKUP(A12,ORÇAMENTO!$A$9:$I$29,2) -> 4 | C12: =VLOOKUP(A12,ORÇAMENTO!$A$9:$I$29,3) -> DRENAGEM E OBRAS COMPLEMENTARES | D12: FISICO | E12: 0.05 | G12: 0.05 | H12: 0.1 | I12: 0.1 | J12: 0.125 | K12: 0.175 | L12: 0.1 | M12: 0.1 | N12: 0.1 | O12: 0.15 | P12: 1
D13: FINANCEIRO | E13: =ORÇAMENTO!I24 -> 737959.13 | F13: =ROUND($E$13*F12,2) -> 0 | G13: =ROUND($E$13*G12,2) -> 36897.96 | H13: =ROUND($E$13*H12,2) -> 73795.91 | I13: 73795.91 | J13: 92244.89 | K13: 129142.85 | L13: 73795.91 | M13: 73795.91 | N13: 73795.91 | O13: 110693.87 | P13: =SUM(F13:O13) -> 737959.12
B14: TOTAL | D14: FISICO | E14: =SUM(F14:O14) -> 0.9999999933 | F14: =F15/E15 -> 0.0376906993 | G14: =G15/$E$15 -> 0.06884535199 | H14: =H15/$E$15 -> 0.099999998 | I14: =I15/$E$15 -> 0.1376906973 | J14: 0.143845348 | K14: 0.1561546493 | L14: 0.1188453493 | M14: 0.099999998 | N14: =N15/$E$15 -> 0.08115465002 | O14: 0.05577325208 | P14: =SUM(F14:O14) -> 0.9999999933
D15: FINANCEIRO | E15: =E11+E9+E7+E13 -> 2997567.36 | F15: =F11+F9+F7+F13 -> 112980.41 | G15: =G11+G9+G7+G13 -> 206368.58 | H15: =H11+H9+H7+H13 -> 299756.73 | I15: 412737.14 | J15: 431186.12 | K15: 468084.08 | L15: 356246.94 | M15: 299756.73 | N15: =N11+N9+N7+N13 -> 243266.53 | O15: 167184.08 | P15: =ROUND(SUM(F15:O15),2)+0.02 -> 2997567.36
B17: OBSERVAÇÕES:
P26: =P15/10 -> 299756.736 | Q26: /MÊS
